[Event "Halifax Summer op"]
[Site "Halifax CAN"]
[Date "2019.06.28"]
[Round "1.3"]
[White "Evoy, Darin"]
[Black "Ferreira, Paulo"]
[Result "0-1"]
[ECO "E91"]
[WhiteElo "1500"]
[BlackElo "1818"]
[PlyCount "88"]
[EventDate "2019.05.28"]
[EventType "swiss"]
[EventRounds "5"]
[EventCountry "CAN"]
[TimeControl "2+30"]

1. d4 {[%emt 0:00:03]} c5 {[%emt 0:00:10]} 2. d5 {[%emt 0:00:19]} Nf6 {
[%emt 0:00:00]} 3. c4 {[%emt 0:00:20]} d6 {[%emt 0:00:10]} 4. Nc3 {
[%emt 0:00:22]} g6 {[%emt 0:00:14]} 5. e4 {[%emt 0:00:44]} Bg7 {[%emt 0:00:26]}
6. Nf3 {[%emt 0:00:00]} O-O {[%emt 0:00:27]} 7. Be2 {[%emt 0:00:14]} Bg4 {
[%emt 0:00:59]} 8. O-O {[%emt 0:00:43]} Nbd7 {[%emt 0:02:37]} 9. Nd2 {
[%emt 0:07:08]} Bxe2 {[%emt 0:02:00]} 10. Qxe2 {[%emt 0:00:17]} a6 {
[%emt 0:02:43]} 11. a3 {[%emt 0:02:27]} Rb8 {[%emt 0:03:15]} 12. Rb1 {
[%emt 0:01:27]} Re8 {[%emt 0:03:47]} 13. f4 {[%emt 0:00:00]} e6 {[%emt 0:00:38]
} 14. dxe6 {[%emt 0:04:15]} Rxe6 {[%emt 0:00:19]} 15. Qd3 {[%emt 0:00:23]} Qc7
{[%emt 0:06:54]} 16. Nf3 {[%emt 0:13:01]} Rbe8 {[%emt 0:02:21]} 17. f5 {
[%emt 0:01:01]} R6e7 {[%emt 0:04:28]} 18. fxg6 {[%emt 0:04:00]} hxg6 {
[%emt 0:00:22]} 19. Bg5 {[%emt 0:03:15]} Re6 {[%emt 0:02:31]} 20. Nd5 {
[%emt 0:14:55]} Nxd5 {[%emt 0:07:22]} 21. exd5 {[%emt 0:00:14]} Ne5 {
[%emt 0:02:45]} 22. Nxe5 {[%emt 0:10:45]} Rxe5 {[%emt 0:00:26]} 23. Bd2 {
[%emt 0:00:25]} Qe7 {[%emt 0:03:44]} 24. b4 {[%emt 0:01:45]} Re4 {
[%emt 0:06:22]} 25. bxc5 {[%emt 0:04:24]} dxc5 {[%emt 0:03:14]} 26. Qb3 {
[%emt 0:07:25]} Re2 {[%emt 0:01:22]} 27. Bf4 {[%emt 0:01:15]} Qe4 {
[%emt 0:06:14]} 28. Qf3 {[%emt 0:00:00]} Bd4+ {[%emt 0:01:13]} 29. Kh1 {
[%emt 0:00:23]} Qxb1 {[%emt 0:10:58]} 30. Qxe2 {[%emt 0:02:38]} Rxe2 {
[%emt 0:00:41]} 31. Rxb1 {[%emt 0:00:07]} b5 {[%emt 0:04:15]} 32. d6 {
[%emt 0:29:10]} Kf8 {[%emt 0:00:00]} 33. h3 {[%emt 0:00:00]} Re4 {
[%emt 0:00:00]} 34. cxb5 {[%emt 0:01:10]} Rxf4 {[%emt 0:02:07]} 35. b6 {
[%emt 0:00:16]} Be5 {[%emt 0:02:58]} 36. b7 {[%emt 0:04:58]} Bxd6 {
[%emt 0:00:16]} 37. b8=Q+ {[%emt 0:00:08]} Bxb8 {[%emt 0:00:34]} 38. Rxb8+ {
[%emt 0:00:05]} Ke7 {[%emt 0:04:52]} 39. Kh2 {[%emt 0:04:19]} Rf6 {
[%emt 0:00:00]} 40. Rb3 {[%emt 0:03:12]} Ke6 {[%emt 0:01:26]} 41. g4 {
[%emt 0:00:50]} Kd5 {[%emt 0:00:26]} 42. g5 {[%emt 0:00:36]} Rc6 {
[%emt 0:01:47]} 43. Rd3+ {[%emt 0:01:00]} Ke4 {[%emt 0:00:47]} 44. Rd7 {
[%emt 0:02:23]} f6 {[%emt 0:04:38]} 0-1

[Event "Halifax Summer op"]
[Site "Halifax CAN"]
[Date "2019.06.28"]
[Round "1.4"]
[White "Heran-Boily, Samuel"]
[Black "Bates, Paul"]
[Result "1-0"]
[ECO "B50"]
[WhiteElo "1790"]
[BlackElo "1499"]
[PlyCount "113"]
[EventDate "2019.05.28"]
[EventType "swiss"]
[EventRounds "5"]
[EventCountry "CAN"]
[TimeControl "2+30"]

1. e4 {[%emt 0:00:10]} c5 {[%emt 0:00:04]} 2. Nf3 {[%emt 0:00:07]} d6 {
[%emt 0:00:00]} 3. Bc4 {[%emt 0:00:10]} Bg4 {[%emt 0:00:56]} 4. Bxf7+ {
[%emt 0:01:25]} Kxf7 {[%emt 0:00:39]} 5. Ng5+ {[%emt 0:00:24]} Ke8 {
[%emt 0:00:18]} 6. Qxg4 {[%emt 0:00:23]} Qd7 {[%emt 0:03:22]} 7. Qh4 {
[%emt 0:07:28]} Nf6 {[%emt 0:01:00]} 8. O-O {[%emt 0:01:21]} h6 {[%emt 0:01:39]
} 9. Re1 {[%emt 0:03:55]} e5 {[%emt 0:02:39]} 10. Qh3 {[%emt 0:09:31]} Qxh3 {
[%emt 0:03:29]} 11. Nxh3 {[%emt 0:00:15]} Nc6 {[%emt 0:01:01]} 12. c3 {
[%emt 0:01:14]} Be7 {[%emt 0:03:11]} 13. d3 {[%emt 0:01:58]} g5 {[%emt 0:02:35]
} 14. f3 {[%emt 0:03:12]} Kd7 {[%emt 0:00:00]} 15. Nf2 {[%emt 0:01:28]} Rag8 {
[%emt 0:03:37]} 16. Be3 {[%emt 0:00:00]} h5 {[%emt 0:03:32]} 17. Nd2 {
[%emt 0:02:48]} g4 {[%emt 0:02:05]} 18. f4 {[%emt 0:01:41]} g3 {[%emt 0:03:11]}
19. Nh3 {[%emt 0:03:11]} gxh2+ {[%emt 0:02:46]} 20. Kxh2 {[%emt 0:02:50]} Ng4+
{[%emt 0:03:20]} 21. Kh1 {[%emt 0:01:46]} Rg6 {[%emt 0:02:54]} 22. f5 {
[%emt 0:01:09]} Rg7 {[%emt 0:00:50]} 23. Nf3 {[%emt 0:00:00]} Rhg8 {
[%emt 0:01:12]} 24. Bd2 {[%emt 0:04:39]} Nf6 {[%emt 0:05:07]} 25. Re2 {
[%emt 0:07:50]} Rg4 {[%emt 0:00:00]} 26. Rf1 {[%emt 0:03:48]} h4 {
[%emt 0:00:00]} 27. Bg5 {[%emt 0:01:59]} Nh5 {[%emt 0:02:12]} 28. Rff2 {
[%emt 0:13:20]} Ng3+ {[%emt 0:01:02]} 29. Kh2 {[%emt 0:00:11]} Nxe2 {
[%emt 0:00:28]} 30. Bxe7 {[%emt 0:01:54]} Kxe7 {[%emt 0:01:50]} 31. Rxe2 {
[%emt 0:01:07]} Kf6 {[%emt 0:00:00]} 32. Nhg1 {[%emt 0:06:03]} Nd8 {
[%emt 0:01:35]} 33. Kh3 {[%emt 0:01:54]} Rg3+ {[%emt 0:04:33]} 34. Kh2 {
[%emt 0:00:27]} R8g4 {[%emt 0:01:12]} 35. Rf2 {[%emt 0:00:47]} Nf7 {
[%emt 0:03:33]} 36. Ne2 {[%emt 0:02:20]} Nh6 {[%emt 0:03:00]} 37. Kh1 {
[%emt 0:02:12]} Rg7 {[%emt 0:30:52]} 38. Nxg3 {[%emt 0:00:00]} hxg3 {
[%emt 0:00:00]} 39. Re2 {[%emt 0:00:00]} Ng4 {[%emt 0:00:00]} 40. Kg1 {
[%emt 0:00:00]} Rh7 {[%emt 0:00:00]} 41. Nd2 {[%emt 0:00:00]} Nf2 {
[%emt 0:00:00]} 42. Rxf2 {[%emt 0:00:00]} gxf2+ {[%emt 0:00:00]} 43. Kxf2 {
[%emt 0:00:00]} b5 {[%emt 0:01:45]} 44. Nf3 {[%emt 0:00:59]} Rh1 {
[%emt 0:00:27]} 45. Ng1 {[%emt 0:02:32]} Rh7 {[%emt 0:01:15]} 46. Nf3 {
[%emt 0:00:26]} Rb7 {[%emt 0:00:00]} 47. g4 {[%emt 0:00:17]} b4 {[%emt 0:00:46]
} 48. g5+ {[%emt 0:00:18]} Kg7 {[%emt 0:03:23]} 49. c4 {[%emt 0:00:50]} a5 {
[%emt 0:01:08]} 50. Kg3 {[%emt 0:00:00]} Rb8 {[%emt 0:04:05]} 51. Kg4 {
[%emt 0:00:45]} Rh8 {[%emt 0:00:44]} 52. Nh4 {[%emt 0:00:38]} Re8 {
[%emt 0:05:44]} 53. f6+ {[%emt 0:00:38]} Kf7 {[%emt 0:00:29]} 54. Kf5 {
[%emt 0:01:22]} Rh8 {[%emt 0:03:06]} 55. g6+ {[%emt 0:00:20]} Ke8 {
[%emt 0:00:43]} 56. g7 {[%emt 0:00:37]} Rg8 {[%emt 0:02:19]} 57. Kg6 {
[%emt 0:00:19]} 1-0

[Event "Halifax Summer op"]
[Site "Halifax CAN"]
[Date "2019.06.29"]
[Round "2.1"]
[White "MacNeil, Walter"]
[Black "Saunders, Stephen"]
[Result "1-0"]
[ECO "A80"]
[WhiteElo "1715"]
[BlackElo "1837"]
[PlyCount "37"]
[EventDate "2019.05.28"]
[EventType "swiss"]
[EventRounds "5"]
[EventCountry "CAN"]
[TimeControl "2+30"]

1. Nf3 {[%emt 0:00:10]} f5 {[%emt 0:00:31]} 2. d4 {[%emt 0:00:21]} Nf6 {
[%emt 0:00:32]} 3. d5 {[%emt 0:04:55]} c6 {[%emt 0:05:15]} 4. c4 {
[%emt 0:04:05]} g6 {[%emt 0:04:00]} 5. Nc3 {[%emt 0:09:56]} Bg7 {[%emt 0:02:04]
} 6. Qc2 {[%emt 0:00:00]} O-O {[%emt 0:06:00]} 7. e4 {[%emt 0:06:50]} fxe4 8.
Nxe4 {[%emt 0:00:00]} cxd5 {[%emt 0:00:00]} 9. Nxf6+ exf6 {[%emt 0:00:00]} 10.
cxd5 {[%emt 0:00:00]} Re8+ {[%emt 0:00:00]} 11. Be3 {[%emt 0:01:38]} Na6 {
[%emt 0:08:37]} 12. d6 {[%emt 0:16:30]} Qa5+ {[%emt 0:11:05]} 13. Nd2 {
[%emt 0:04:35]} Nb4 {[%emt 0:00:00]} 14. Qb3+ {[%emt 0:08:32]} Kf8 {
[%emt 0:10:24]} 15. Bc4 {[%emt 0:00:00]} Rxe3+ {[%emt 0:20:12]} 16. fxe3 {
[%emt 0:03:21]} Nc6 {[%emt 0:01:17]} 17. Bg8 {[%emt 0:04:01]} Ne5 {
[%emt 0:00:59]} 18. Bxh7 {[%emt 0:00:37]} b6 {[%emt 0:02:00]} 19. Qg8# {
[%emt 0:00:20]} 1-0

[Event "Halifax Summer op"]
[Site "Halifax CAN"]
[Date "2019.06.29"]
[Round "2.2"]
[White "MacNeil, Conrad"]
[Black "Heran-Boily, Samuel"]
[Result "0-1"]
[ECO "C53"]
[WhiteElo "1684"]
[BlackElo "1790"]
[PlyCount "122"]
[EventDate "2019.05.28"]
[EventType "swiss"]
[EventRounds "5"]
[EventCountry "CAN"]
[TimeControl "2+30"]

1. e4 {[%emt 0:00:01]} e5 {[%emt 0:00:09]} 2. Nf3 {[%emt 0:00:15]} Nc6 {
[%emt 0:00:15]} 3. d4 {[%emt 0:00:14]} exd4 {[%emt 0:00:19]} 4. Bc4 {
[%emt 0:00:08]} Bc5 {[%emt 0:12:34]} 5. c3 {[%emt 0:03:12]} d6 {[%emt 0:10:19]}
6. cxd4 {[%emt 0:05:10]} Bb6 {[%emt 0:03:59]} 7. Qb3 {[%emt 0:39:24]} Na5 {
[%emt 0:01:32]} 8. Qd3 {[%emt 0:14:50]} Nxc4 {[%emt 0:07:24]} 9. Qxc4 {
[%emt 0:00:24]} Be6 {[%emt 0:10:58]} 10. Qd3 {[%emt 0:02:54]} Bg4 {
[%emt 0:04:39]} 11. Nc3 {[%emt 0:05:50]} Bxf3 {[%emt 0:02:55]} 12. gxf3 {
[%emt 0:05:08]} Ne7 {[%emt 0:14:19]} 13. Bg5 {[%emt 0:13:35]} f6 {
[%emt 0:02:56]} 14. Be3 {[%emt 0:02:57]} Qd7 {[%emt 0:04:00]} 15. Rg1 {
[%emt 0:08:14]} g6 {[%emt 0:06:39]} 16. O-O-O {[%emt 0:05:01]} O-O-O {
[%emt 0:07:39]} 17. f4 {[%emt 0:07:07]} f5 {[%emt 0:02:32]} 18. f3 {
[%emt 0:03:44]} d5 {[%emt 0:02:29]} 19. Kb1 {[%emt 0:01:24]} dxe4 {
[%emt 0:01:00]} 20. fxe4 {[%emt 0:00:20]} fxe4 {[%emt 0:00:48]} 21. Nxe4 {
[%emt 0:08:27]} Nf5 {[%emt 0:01:33]} 22. Bf2 {[%emt 0:02:54]} Rhf8 {
[%emt 0:05:43]} 23. d5 {[%emt 0:01:09]} Bxf2 {[%emt 0:01:06]} 24. Nxf2 {
[%emt 0:00:02]} Ne7 {[%emt 0:00:00]} 25. Qa3 {[%emt 0:01:07]} Kb8 {
[%emt 0:01:52]} 26. Rge1 {[%emt 0:01:41]} Nxd5 {[%emt 0:02:30]} 27. Re4 {
[%emt 0:04:34]} Qf5 {[%emt 0:02:19]} 28. Ka1 {[%emt 0:01:47]} Nxf4 {
[%emt 0:01:40]} 29. Red4 {[%emt 0:00:40]} Ne6 {[%emt 0:00:00]} 30. Rxd8+ {
[%emt 0:00:59]} Rxd8 {[%emt 0:00:46]} 31. Rxd8+ {[%emt 0:00:00]} Nxd8 {
[%emt 0:00:10]} 32. Qe3 {[%emt 0:00:57]} Qe6 {[%emt 0:01:31]} 33. Qd2 {
[%emt 0:00:02]} Nc6 {[%emt 0:00:25]} 34. a3 {[%emt 0:00:08]} a6 {[%emt 0:00:00]
} 35. h3 {[%emt 0:00:59]} Qf5 {[%emt 0:00:55]} 36. Ka2 {[%emt 0:00:34]} h5 {
[%emt 0:00:41]} 37. Ka1 {[%emt 0:00:38]} g5 {[%emt 0:00:31]} 38. Ka2 {
[%emt 0:00:35]} g4 {[%emt 0:00:47]} 39. hxg4 {[%emt 0:00:36]} hxg4 {
[%emt 0:00:00]} 40. Qe2 {[%emt 0:00:27]} g3 {[%emt 0:01:20]} 41. Ne4 {
[%emt 0:00:21]} Nd4 {[%emt 0:01:03]} 42. Qg2 {[%emt 0:00:18]} Qd5+ {
[%emt 0:00:27]} 43. Kb1 {[%emt 0:00:39]} Nf5 {[%emt 0:00:39]} 44. Qf3 {
[%emt 0:00:36]} Nd6 {[%emt 0:01:05]} 45. Qf8+ {[%emt 0:00:03]} Ka7 {
[%emt 0:00:21]} 46. Nxg3 {[%emt 0:00:52]} Qd3+ {[%emt 0:00:08]} 47. Ka2 {
[%emt 0:00:57]} Qxg3 {[%emt 0:00:09]} 48. Qe7 {[%emt 0:00:20]} Qg4 {
[%emt 0:00:24]} 49. Qxc7 {[%emt 0:00:17]} Qc4+ {[%emt 0:00:05]} 50. Qxc4 {
[%emt 0:00:33]} Nxc4 {[%emt 0:00:06]} 51. Kb3 {[%emt 0:00:13]} Nd6 {
[%emt 0:00:08]} 52. Kc3 {[%emt 0:00:31]} Kb6 {[%emt 0:00:17]} 53. Kb4 {
[%emt 0:00:00]} a5+ {[%emt 0:00:55]} 54. Ka4 {[%emt 0:00:27]} Ka6 {
[%emt 0:00:08]} 55. Kb3 {[%emt 0:00:09]} b5 {[%emt 0:00:12]} 56. Kc3 {
[%emt 0:01:39]} Kb6 {[%emt 0:00:00]} 57. b3 {[%emt 0:00:22]} Kc6 {
[%emt 0:00:31]} 58. Kd4 {[%emt 0:00:19]} Nf5+ {[%emt 0:00:21]} 59. Ke4 {
[%emt 0:00:29]} b4 {[%emt 0:00:59]} 60. a4 {[%emt 0:00:58]} Kc5 {[%emt 0:00:33]
} 61. Kd3 {[%emt 0:00:35]} Nd4 {[%emt 0:00:00]} 0-1

[Event "Halifax Summer op"]
[Site "Halifax CAN"]
[Date "2019.06.29"]
[Round "2.3"]
[White "Cashin, Ken"]
[Black "Kapra, Jerjis"]
[Result "0-1"]
[ECO "B13"]
[WhiteElo "1765"]
[BlackElo "1658"]
[PlyCount "76"]
[EventDate "2019.05.28"]
[EventType "swiss"]
[EventRounds "5"]
[EventCountry "CAN"]
[TimeControl "2+30"]

1. e4 {[%emt 0:00:05]} c6 {[%emt 0:00:11]} 2. d4 {[%emt 0:00:16]} d5 {
[%emt 0:00:00]} 3. exd5 {[%emt 0:00:22]} cxd5 {[%emt 0:00:19]} 4. Bd3 {
[%emt 0:00:50]} Nc6 {[%emt 0:00:09]} 5. c3 {[%emt 0:00:37]} Nf6 {[%emt 0:00:37]
} 6. Bf4 {[%emt 0:00:26]} Bg4 {[%emt 0:02:44]} 7. Qb3 {[%emt 0:00:02]} Qd7 {
[%emt 0:01:44]} 8. Nd2 {[%emt 0:00:24]} e6 {[%emt 0:00:32]} 9. Ngf3 {
[%emt 0:00:15]} Be7 {[%emt 0:00:00]} 10. Ne5 {[%emt 0:05:03]} Qc8 {
[%emt 0:00:24]} 11. Nxg4 {[%emt 0:00:58]} Nxg4 {[%emt 0:00:25]} 12. Nf3 {
[%emt 0:01:17]} O-O {[%emt 0:00:44]} 13. O-O {[%emt 0:00:23]} Bd8 {
[%emt 0:08:18]} 14. Qc2 {[%emt 0:02:52]} h6 {[%emt 0:02:00]} 15. Rae1 {
[%emt 0:01:34]} Bc7 {[%emt 0:00:38]} 16. Bg3 {[%emt 0:00:36]} Bxg3 {
[%emt 0:01:12]} 17. fxg3 {[%emt 0:00:28]} Qc7 {[%emt 0:02:37]} 18. h3 {
[%emt 0:03:09]} Nf6 {[%emt 0:00:08]} 19. Qf2 {[%emt 0:03:26]} Nh5 {
[%emt 0:21:00]} 20. Ne5 {[%emt 0:00:00]} f5 {[%emt 0:00:00]} 21. Qf3 {
[%emt 0:00:38]} Nf6 {[%emt 0:01:30]} 22. Ng6 {[%emt 0:02:36]} Rfe8 {
[%emt 0:01:25]} 23. Ne5 {[%emt 0:08:05]} Nxe5 {[%emt 0:02:10]} 24. Rxe5 {
[%emt 0:00:24]} Qb6 {[%emt 0:07:38]} 25. Rf2 {[%emt 0:02:26]} Rf8 {
[%emt 0:01:35]} 26. Qd1 {[%emt 0:04:01]} Ne4 {[%emt 0:00:24]} 27. Bxe4 {
[%emt 0:01:28]} fxe4 {[%emt 0:00:17]} 28. Rxf8+ {[%emt 0:07:32]} Rxf8 {
[%emt 0:00:09]} 29. Qb3 {[%emt 0:01:42]} Qa6 {[%emt 0:01:00]} 30. c4 {
[%emt 0:01:31]} Rc8 {[%emt 0:02:28]} 31. Qb5 {[%emt 0:08:18]} Qxb5 {
[%emt 0:01:18]} 32. cxb5 {[%emt 0:00:10]} Kf7 {[%emt 0:00:10]} 33. g4 {
[%emt 0:01:30]} g5 {[%emt 0:01:49]} 34. h4 {[%emt 0:08:06]} Kf6 {[%emt 0:00:00]
} 35. a4 Rc4 {[%emt 0:00:00]} 36. a5 {[%emt 0:00:00]} Rxd4 {[%emt 0:00:00]} 37.
a6 {[%emt 0:00:00]} b6 {[%emt 0:00:00]} 38. Kf2 {[%emt 0:00:00]} Kxe5 {
[%emt 0:00:00]} 0-1

[Event "Halifax Summer op"]
[Site "Halifax CAN"]
[Date "2019.06.29"]
[Round "2.4"]
[White "Uppal, Neil"]
[Black "Poirier, David"]
[Result "0-1"]
[ECO "D02"]
[WhiteElo "1449"]
[BlackElo "1755"]
[PlyCount "158"]
[EventDate "2019.05.28"]
[EventType "swiss"]
[EventRounds "5"]
[EventCountry "CAN"]
[TimeControl "2+30"]

1. d4 {[%emt 0:00:00]} d5 {[%emt 0:00:08]} 2. Bf4 {[%emt 0:00:06]} e6 {
[%emt 0:00:00]} 3. Nf3 {[%emt 0:00:12]} Nf6 {[%emt 0:00:09]} 4. e3 {
[%emt 0:01:11]} Bd6 {[%emt 0:00:12]} 5. Bg3 {[%emt 0:00:06]} Ne4 {
[%emt 0:00:46]} 6. Nbd2 {[%emt 0:00:00]} Nxg3 {[%emt 0:00:44]} 7. hxg3 {
[%emt 0:00:06]} Nd7 {[%emt 0:00:24]} 8. e4 {[%emt 0:06:56]} c6 {[%emt 0:00:18]}
9. e5 {[%emt 0:01:53]} Be7 {[%emt 0:00:00]} 10. Bd3 {[%emt 0:02:03]} h6 {
[%emt 0:00:17]} 11. c3 {[%emt 0:02:51]} c5 {[%emt 0:00:14]} 12. Rc1 {
[%emt 0:02:22]} Qb6 {[%emt 0:00:39]} 13. Qc2 {[%emt 0:00:00]} c4 {
[%emt 0:00:44]} 14. Be2 {[%emt 0:00:08]} Qc6 {[%emt 0:04:18]} 15. g4 {
[%emt 0:10:44]} b5 {[%emt 0:01:19]} 16. g5 {[%emt 0:01:57]} Nf8 {[%emt 0:00:00]
} 17. gxh6 {[%emt 0:03:58]} Rxh6 {[%emt 0:02:20]} 18. Rxh6 {[%emt 0:00:00]}
gxh6 {[%emt 0:00:08]} 19. b3 {[%emt 0:19:38]} Bd7 {[%emt 0:00:00]} 20. a4 {
[%emt 0:00:00]} a6 {[%emt 0:00:00]} 21. Ra1 {[%emt 0:00:58]} Rc8 {
[%emt 0:00:00]} 22. axb5 {[%emt 0:07:01]} axb5 {[%emt 0:00:19]} 23. b4 {
[%emt 0:03:07]} Ra8 {[%emt 0:00:17]} 24. Qb2 {[%emt 0:00:27]} Ra6 {
[%emt 0:00:59]} 25. Ra3 {[%emt 0:02:40]} Qa8 {[%emt 0:00:27]} 26. Nb1 {
[%emt 0:00:47]} Rxa3 {[%emt 0:00:00]} 27. Qxa3 {[%emt 0:00:34]} Qxa3 {
[%emt 0:00:07]} 28. Nxa3 {[%emt 0:00:02]} f5 {[%emt 0:01:18]} 29. g3 {
[%emt 0:01:29]} Kf7 {[%emt 0:01:40]} 30. Nd2 {[%emt 0:01:36]} Bg5 {
[%emt 0:01:01]} 31. f4 {[%emt 0:07:10]} Be7 {[%emt 0:00:00]} 32. Kf2 {
[%emt 0:05:12]} Kg6 {[%emt 0:00:23]} 33. Kg2 {[%emt 0:02:19]} h5 {
[%emt 0:00:05]} 34. Kh3 {[%emt 0:00:34]} Kh6 {[%emt 0:00:31]} 35. Nf3 {
[%emt 0:01:29]} Ng6 {[%emt 0:00:14]} 36. Nc2 {[%emt 0:01:21]} h4 {
[%emt 0:01:28]} 37. Nxh4 {[%emt 0:01:19]} Bxh4 {[%emt 0:00:15]} 38. Bd1 {
[%emt 0:01:41]} Be7 {[%emt 0:00:19]} 39. Be2 {[%emt 0:00:18]} Bd8 {
[%emt 0:03:45]} 40. Bd1 {[%emt 0:00:00]} Be8 {[%emt 0:00:17]} 41. Na3 {
[%emt 0:00:53]} Ne7 {[%emt 0:02:30]} 42. g4 {[%emt 0:01:33]} fxg4+ {
[%emt 0:09:28]} 43. Bxg4 {[%emt 0:00:00]} Nf5 {[%emt 0:00:00]} 44. Nc2 {
[%emt 0:00:00]} Kg6 {[%emt 0:00:00]} 45. Kh2 {[%emt 0:00:00]} Bh4 {
[%emt 0:00:00]} 46. Kh3 {[%emt 0:00:00]} Be7 {[%emt 0:00:32]} 47. Kh2 {
[%emt 0:01:13]} Bd7 {[%emt 0:00:49]} 48. Kh3 {[%emt 0:00:25]} Nh6 {
[%emt 0:00:53]} 49. Bf3 {[%emt 0:01:10]} Nf5 {[%emt 0:03:10]} 50. Bg4 {
[%emt 0:00:14]} Kh6 {[%emt 0:00:59]} 51. Kh2 {[%emt 0:05:25]} Ng7 {
[%emt 0:04:27]} 52. Ne3 {[%emt 0:02:46]} Bc6 {[%emt 0:01:20]} 53. Nc2 {
[%emt 0:00:58]} Nh5 {[%emt 0:00:00]} 54. Bxe6 {[%emt 0:21:57]} Nxf4 {
[%emt 0:00:10]} 55. Bg4 {[%emt 0:00:14]} Bg5 {[%emt 0:01:21]} 56. Ne3 {
[%emt 0:20:54]} Kg7 {[%emt 0:00:43]} 57. Nf5+ {[%emt 0:03:17]} Kf8 {
[%emt 0:00:26]} 58. Nd6 {[%emt 0:03:17]} Ke7 {[%emt 0:02:00]} 59. Nc8+ {
[%emt 0:00:27]} Kd8 {[%emt 0:00:38]} 60. Nd6 {[%emt 0:00:40]} Be7 {
[%emt 0:02:04]} 61. Nf5 {[%emt 0:02:15]} Nd3 {[%emt 0:02:01]} 62. Ng3 {
[%emt 0:03:28]} Nf2 {[%emt 0:00:52]} 63. Bf3 {[%emt 0:00:28]} Ne4 {
[%emt 0:01:00]} 64. Ne2 {[%emt 0:00:48]} Bg5 {[%emt 0:00:40]} 65. Kg2 {
[%emt 0:02:04]} Nd2 {[%emt 0:00:56]} 66. Bg4 {[%emt 0:02:00]} Bd7 {
[%emt 0:00:24]} 67. e6 {[%emt 0:00:00]} Bc8 {[%emt 0:00:57]} 68. Kg3 {
[%emt 0:00:56]} Ke7 {[%emt 0:00:34]} 69. Nf4 {[%emt 0:00:39]} Bxf4+ {
[%emt 0:00:16]} 70. Kxf4 {[%emt 0:00:05]} Bxe6 {[%emt 0:00:09]} 71. Bh5 {
[%emt 0:00:26]} Ne4 {[%emt 0:00:33]} 72. Bf3 {[%emt 0:00:00]} Nxc3 {
[%emt 0:00:09]} 73. Ke5 {[%emt 0:00:10]} Kd7 {[%emt 0:00:26]} 74. Bh5 {
[%emt 0:00:24]} Bg8 {[%emt 0:00:51]} 75. Bf3 {[%emt 0:00:33]} Kc6 {
[%emt 0:00:16]} 76. Bh5 {[%emt 0:00:23]} Na2 {[%emt 0:00:14]} 77. Be8+ {
[%emt 0:00:00]} Kb6 {[%emt 0:00:14]} 78. Kf6 {[%emt 0:01:02]} Nxb4 {
[%emt 0:00:36]} 79. Bd7 {[%emt 0:00:16]} Bh7 {[%emt 0:00:17]} 0-1

[Event "Halifax Summer op"]
[Site "Halifax CAN"]
[Date "2019.06.29"]
[Round "3.1"]
[White "Poirier, David"]
[Black "MacNeil, Walter"]
[Result "1/2-1/2"]
[ECO "D10"]
[WhiteElo "1755"]
[BlackElo "1715"]
[PlyCount "90"]
[EventDate "2019.05.28"]
[EventType "swiss"]
[EventRounds "5"]
[EventCountry "CAN"]
[TimeControl "2+30"]

1. d4 {[%emt 0:00:02]} d5 {[%emt 0:00:52]} 2. c4 {[%emt 0:00:08]} c6 {
[%emt 0:00:00]} 3. e3 {[%emt 0:00:09]} dxc4 {[%emt 0:00:40]} 4. Bxc4 {
[%emt 0:00:08]} b5 {[%emt 0:00:09]} 5. Be2 {[%emt 0:00:09]} Bf5 {[%emt 0:00:52]
} 6. Bd3 {[%emt 0:01:22]} Bxd3 {[%emt 0:02:14]} 7. Qxd3 {[%emt 0:00:50]} Nd7 {
[%emt 0:01:40]} 8. Nf3 {[%emt 0:00:16]} Ngf6 {[%emt 0:01:26]} 9. O-O {
[%emt 0:00:12]} e6 {[%emt 0:00:36]} 10. Nc3 {[%emt 0:00:20]} a5 {[%emt 0:02:24]
} 11. Bd2 {[%emt 0:00:00]} Bd6 {[%emt 0:12:36]} 12. Ne4 {[%emt 0:02:24]} Nxe4 {
[%emt 0:13:37]} 13. Qxe4 {[%emt 0:00:09]} Rc8 {[%emt 0:09:38]} 14. Rac1 {
[%emt 0:01:23]} Qb6 {[%emt 0:11:05]} 15. Rfd1 {[%emt 0:05:33]} Nf6 {
[%emt 0:08:57]} 16. Qd3 {[%emt 0:00:25]} O-O {[%emt 0:13:27]} 17. e4 {
[%emt 0:00:23]} Be7 {[%emt 0:01:09]} 18. h3 {[%emt 0:02:37]} c5 {[%emt 0:06:19]
} 19. Bg5 {[%emt 0:04:35]} c4 {[%emt 0:00:00]} 20. Qe2 {[%emt 0:00:19]} Rfe8 {
[%emt 0:06:34]} 21. e5 {[%emt 0:07:41]} Nd5 {[%emt 0:01:02]} 22. Bxe7 {
[%emt 0:00:13]} Rxe7 {[%emt 0:00:36]} 23. Qe4 {[%emt 0:00:50]} h6 {
[%emt 0:06:34]} 24. g4 {[%emt 0:02:47]} Qc6 {[%emt 0:07:14]} 25. g5 {
[%emt 0:01:02]} Nb4 {[%emt 0:00:25]} 26. Qxc6 {[%emt 0:00:49]} Rxc6 {
[%emt 0:00:15]} 27. a3 {[%emt 0:00:13]} Nd5 {[%emt 0:00:51]} 28. gxh6 {
[%emt 0:00:00]} gxh6 {[%emt 0:00:11]} 29. Kh2 {[%emt 0:00:11]} f5 {
[%emt 0:00:34]} 30. exf6 {[%emt 0:00:40]} Nxf6 {[%emt 0:00:15]} 31. Rg1+ {
[%emt 0:00:27]} Rg7 {[%emt 0:00:53]} 32. Rxg7+ {[%emt 0:02:56]} Kxg7 {
[%emt 0:00:07]} 33. Rg1+ {[%emt 0:00:05]} Kh7 {[%emt 0:00:35]} 34. Re1 {
[%emt 0:03:42]} b4 {[%emt 0:01:00]} 35. axb4 {[%emt 0:00:15]} axb4 {
[%emt 0:00:06]} 36. Ra1 {[%emt 0:00:30]} c3 {[%emt 0:01:07]} 37. bxc3 {
[%emt 0:00:13]} bxc3 {[%emt 0:01:46]} 38. Ra7+ {[%emt 0:01:46]} Kg8 {
[%emt 0:00:24]} 39. Ra8+ {[%emt 0:00:39]} Kg7 {[%emt 0:00:00]} 40. Ra7+ {
[%emt 0:00:20]} Kf8 {[%emt 0:00:56]} 41. Ra8+ {[%emt 0:04:55]} Ke7 {
[%emt 0:00:45]} 42. Ne5 {[%emt 0:00:24]} Rc7 {[%emt 0:01:59]} 43. Nd3 {
[%emt 0:02:33]} Nd5 {[%emt 0:01:15]} 44. Ra1 {[%emt 0:02:55]} Rc4 {
[%emt 0:00:00]} 45. Ne5 {[%emt 0:03:43]} Rc7 {[%emt 0:00:41]} 1/2-1/2